[Event "4th Nikity Blitz 2024"]
[Site "Niteroi"]
[Date "2024.08.31"]
[Round "3.2"]
[White "Porto, Cristiano Nogueira"]
[Black "Quintiliano, Renato R."]
[Result "0-1"]
[ECO "B22"]
[WhiteElo "2217"]
[BlackElo "2499"]
[Annotator "TA"]
[PlyCount "58"]
[EventDate "2024.08.28"]
[EventType "swiss"]
[EventCountry "BRA"]
[SourceTitle "playchess.com"]
[Source "ChessBase"]
[SourceQuality "1"]
[TimeControl "180+2"]

{[%evp 19,58,-20,-13,-20,-9,-8,0,0,0,-8,143,0,0,0,20,18,17,0,7,0,115,14,17,0,30,0,6,0,45,43,100,-24,-15,-77,18,-260,-265,-445,-440,-715,-701]} 1. e4 {[%emt 0:00:01][%cal Be2e4,Be4e5][%mdl 32]} c5 {[%emt 0:00:01]} 2. c3 {[%emt 0:00:01]} Nf6 {[%emt 0:03:05]} 3. e5 Nd5 {[%emt 0:00:02]} 4. d4 cxd4 {[%emt 0:00:00]} 5. Nf3 {[%emt 0:00:01]} e6 {[%emt 0:00:00]} 6. cxd4 {[%emt 0:00:00]} d6 {[%emt 0:00:00]} 7. a3 {[%emt 0:00:01]} Bd7 {[%emt 0:00:00]} 8. Bd3 {[%emt 0:00:02]} Bc6 {[%emt 0:00:00]} 9. O-O {[%emt 0:00:01]} Nd7 {[%emt 0:00:00]} 10. Qe2 {[%emt 0:00:07]} Be7 {[%emt 0:00:00]} 11. Rd1 {[%emt 0:00:10]} Rc8 {[%emt 0:00:00]} 12. Bd2 {[%emt 0:00:01]} Qb6 {[%emt 0:00:00]} 13. Nc3 {[%emt 0:00:26] The position is equal.} dxe5 {[%emt 0:00:00]} 14. dxe5 {[%emt 0:00:15]} Qxb2 $2 {[%emt 0:00:00]} (14... O-O $11) 15. Nxd5 {[%emt 0:00:02]} (15. Nb5 $16 {And now Rdb1 would win.} Qb3 16. a4 (16. Nxa7 Ra8 $14)) 15... Bxd5 $11 {[%emt 0:00:00]} 16. Bb5 {[%emt 0:00:50] Threatens to win with Rdb1.} Bc6 {[%emt 0:00:00]} (16... Bxa3 $2 17. Qd3 Qb3 18. Qxb3 Bxb3 19. Rdb1 $18) 17. Bxc6 {[%emt 0:00:26]} bxc6 {[%emt 0:00:00]} 18. Qa6 {[%emt 0:00:08]} (18. Rdb1 $5 Qc2 $8 19. Rb7 $14) 18... O-O {[%emt 0:00:00]} 19. Qxa7 {[%emt 0:00:06]} Rcd8 {[%emt 0:00:00] [#]} (19... Rfd8 $11 {remains equal.}) 20. Rdb1 {[%emt 0:00:16]} (20. Be3 $1 $16) 20... Qc2 {[%emt 0:00:00][%cal Od7e5]} 21. Rc1 {[%emt 0:00:05]} Qe4 {[%emt 0:00:00][%cal Od7e5]} (21... Qd3 $5) 22. Qe3 {[%emt 0:00:13]} Qd5 {[%emt 0:00:00]} 23. Bc3 {[%emt 0:00:04]} Bc5 {[%emt 0:00:00]} 24. Qe2 {[%emt 0:00:02]} Nb6 {[%emt 0:00:00]} (24... Ra8 $14) 25. Rd1 {[%emt 0:00:11]} ({White should try} 25. a4 $16) 25... Qb3 {[%emt 0:00:03][%csl LRa3,LRc3]} 26. Rdc1 {[%emt 0:00:17]} (26. Bd2 $11) 26... Nd5 {[%emt 0:00:08] Black is much more active.} (26... Bxa3 $17 27. Rab1 Qc4 28. Qxc4 Nxc4) 27. Bd4 $2 {[%emt 0:00:05][%mdl 8192]} (27. Be1 $11 {and White has nothing to worry.} Nf4 (27... Bxa3 $2 28. Rcb1 $18) 28. Qc4 Qxc4 29. Rxc4) 27... Nf4 $19 {[%emt 0:00:01]} (27... Bxa3 28. Rcb1 Nc3 29. Qd3 $11) 28. Qe4 {[%emt 0:00:07]} (28. Qe3 Qxe3 29. fxe3 Ne2+ 30. Kf2 Nxc1 (30... Bxd4 $2 31. exd4 Nxc1 32. Rxc1 $19) 31. Rxc1 Bxa3 32. Rxc6) 28... Bxd4 {[%emt 0:00:38]} (28... Bxa3 $2 {loses.} 29. Rcb1 (29. Qxf4 Bxc1 30. Rxc1 Rd5 $16) (29. Rxc6 Nd5 $11) 29... Qc4 30. Qxf4 $18) 29. Nxd4 {[%emt 0:00:02] [#]} (29. Rab1 $142 Bxf2+ (29... Qxa3 30. Qxf4 c5 31. Qe4 $17) (29... Qa4 $2 30. Kh1 $19) 30. Kxf2 Qa2+ (30... Qxa3 $2 {is the wrong capture.} 31. Qxf4 c5 32. Rb5 $18) 31. Qc2 Nd3+ (31... Qxa3 $2 32. Ra1 $19) 32. Kg3 Nxc1 33. Qxc1) 29... Rxd4 $1 {[%emt 0:00:02][%mdl 512] Weighted Error Value: White=0.86/Black=0.36.  Loses game:     	White=1     	---        Mistake:       	White=6     	Black=4      Inaccurate:     	White=1     	Black=2      OK:         	White=5     	Black=4      Best:        	---       	Black=2      Brilliant:      	---       	Black=1} 0-1

[Event "4th Nikity Blitz 2024"]
[Site "Niteroi"]
[Date "2024.08.31"]
[Round "3.3"]
[White "Lage, Pedro Ferreira"]
[Black "Perdomo, Leandro"]
[Result "0-1"]
[ECO "A45"]
[WhiteElo "2132"]
[BlackElo "2359"]
[Annotator "RC"]
[PlyCount "70"]
[EventDate "2024.08.28"]
[EventType "swiss"]
[EventCountry "BRA"]
[SourceTitle "playchess.com"]
[Source "ChessBase"]
[SourceQuality "1"]
[TimeControl "180+2"]

1. d4 {[%emt 0:00:03]} Nf6 {[%emt 0:00:00]} 2. Bg5 {[%emt 0:00:01]} g6 {[%emt 0:00:02]} 3. Bxf6 {[%emt 0:00:02]} exf6 {[%emt 0:00:00]} 4. c4 {[%emt 0:00:01]} d5 {[%emt 0:00:02]} 5. cxd5 {[%emt 0:00:03]} Qxd5 {[%emt 0:00:01]} 6. Nc3 {[%emt 0:00:01]} Qd8 {[%emt 0:00:00]} 7. e3 {[%emt 0:00:03]} Nd7 {[%emt 0:00:08]} 8. g3 {[%emt 0:00:02]} Bd6 {[%emt 0:00:05]} 9. Bg2 {[%emt 0:00:02]} f5 {[%emt 0:00:01]} 10. Nge2 {[%emt 0:00:01]} h5 {[%emt 0:00:06]} 11. h4 {[%emt 0:00:04]} c6 {[%emt 0:00:09]} 12. Rc1 {[%emt 0:00:11]} Nb6 {[%emt 0:00:11]} 13. Nf4 {[%emt 0:00:23]} Bxf4 {[%emt 0:00:24]} 14. exf4 {[%emt 0:00:02]} O-O {[%emt 0:00:01]} 15. O-O {[%emt 0:00:06]} Be6 {[%emt 0:00:01]} 16. Na4 {[%emt 0:00:41]} Nxa4 {[%emt 0:00:13]} 17. Qxa4 {[%emt 0:00:01]} Bd5 {[%emt 0:00:01]} 18. Bxd5 {[%emt 0:00:04]} Qxd5 {[%emt 0:00:02]} 19. Rc5 {[%emt 0:00:02]} Qd6 {[%emt 0:00:19]} 20. Rfc1 {[%emt 0:00:26]} Rfd8 {[%emt 0:00:09]} 21. Qb3 {[%emt 0:00:17]} Rd7 {[%emt 0:00:21]} 22. d5 {[%emt 0:00:34]} cxd5 {[%emt 0:00:07]} 23. Rb5 {[%emt 0:00:05]} b6 {[%emt 0:00:13]} 24. Rd1 {[%emt 0:00:01]} d4 {[%emt 0:00:08]} 25. Re5 {[%emt 0:00:28]} Rc8 {[%emt 0:00:36]} 26. Qd3 {[%emt 0:00:01]} Qc6 {[%emt 0:00:07]} 27. Rde1 {[%emt 0:00:06]} Kg7 {[%emt 0:00:14]} 28. Re7 {[%emt 0:00:01]} Rcc7 {[%emt 0:00:06]} 29. Re8 {[%emt 0:00:02]} Rd5 {[%emt 0:00:03]} 30. R1e7 {[%emt 0:00:02]} Rxe7 {[%emt 0:00:03]} 31. Rxe7 {[%emt 0:00:01]} Qc1+ {[%emt 0:00:01]} 32. Kg2 {[%emt 0:00:01]} a5 {[%emt 0:00:08]} 33. Qb3 {[%emt 0:00:03]} Qc6 {[%emt 0:00:01]} 34. Qd3 {[%emt 0:00:05]} Re5+ {[%emt 0:00:02]} 35. Kh2 {[%emt 0:00:03]} Rxe7 {[%emt 0:00:01]} 0-1

[Event "4th Nikity Blitz 2024"]
[Site "Niteroi"]
[Date "2024.08.31"]
[Round "3.4"]
[White "Santiago, Yago De Moura"]
[Black "Rodrigues Mota, Romulo Cardoso S"]
[Result "1-0"]
[ECO "E49"]
[WhiteElo "2455"]
[BlackElo "2110"]
[Annotator "RC"]
[PlyCount "51"]
[EventDate "2024.08.28"]
[EventType "swiss"]
[EventCountry "BRA"]
[SourceTitle "playchess.com"]
[Source "ChessBase"]
[SourceQuality "1"]
[TimeControl "180+2"]

1. d4 {[%emt 0:00:02]} Nf6 {[%emt 0:00:01]} 2. c4 {[%emt 0:00:02]} e6 {[%emt 0:00:00]} 3. Nc3 {[%emt 0:00:01]} Bb4 {[%emt 0:00:01]} 4. e3 {[%emt 0:00:01]} O-O {[%emt 0:00:02]} 5. Bd3 {[%emt 0:00:06]} d5 {[%emt 0:00:01]} 6. a3 {[%emt 0:00:03]} Bxc3+ {[%emt 0:00:02]} 7. bxc3 {[%emt 0:00:01]} c5 {[%emt 0:00:05]} 8. cxd5 {[%emt 0:00:02]} exd5 {[%emt 0:03:06]} 9. Ne2 Nc6 {[%emt 0:00:00]} 10. O-O {[%emt 0:00:06]} b6 {[%emt 0:00:00]} 11. Ng3 {[%emt 0:00:08]} Re8 {[%emt 0:00:00]} 12. a4 {[%emt 0:00:13]} a5 {[%emt 0:00:00]} 13. Rb1 {[%emt 0:00:10]} Ba6 {[%emt 0:00:00]} 14. Bxa6 {[%emt 0:00:11]} Rxa6 {[%emt 0:00:00]} 15. dxc5 {[%emt 0:00:01]} bxc5 {[%emt 0:00:00]} 16. Rb5 {[%emt 0:00:02]} c4 {[%emt 0:00:00]} 17. Ba3 {[%emt 0:00:17]} Qd7 {[%emt 0:00:00]} 18. Qb1 {[%emt 0:00:09]} Na7 {[%emt 0:00:00]} 19. Rb7 {[%emt 0:00:37]} Qxa4 {[%emt 0:00:00]} 20. Bc5 {[%emt 0:00:58]} Nc8 {[%emt 0:00:00]} 21. Nf5 {[%emt 0:00:13]} Qc6 {[%emt 0:00:00]} 22. Bd4 {[%emt 0:00:01]} Nd6 {[%emt 0:00:00]} 23. Nxd6 {[%emt 0:00:03]} Qxd6 {[%emt 0:00:00]} 24. Qb5 {[%emt 0:00:01]} Qc6 {[%emt 0:00:00]} 25. Bxf6 {[%emt 0:00:08]} Qxf6 {[%emt 0:00:00]} 26. Qxe8# {[%emt 0:00:03]} 1-0

[Event "4th Nikity Blitz 2024"]
[Site "Niteroi"]
[Date "2024.08.31"]
[Round "3.5"]
[White "Da Cunha, Fabio Barbosa"]
[Black "Do Valle Cardoso, Lucas"]
[Result "0-1"]
[ECO "B74"]
[WhiteElo "2034"]
[BlackElo "2365"]
[Annotator "RC"]
[PlyCount "70"]
[EventDate "2024.08.28"]
[EventType "swiss"]
[EventCountry "BRA"]
[SourceTitle "playchess.com"]
[Source "ChessBase"]
[SourceQuality "1"]
[TimeControl "180+2"]

1. e4 {[%emt 0:00:01]} c5 {[%emt 0:00:06]} 2. Nf3 {[%emt 0:00:01]} d6 {[%emt 0:00:00]} 3. d4 {[%emt 0:00:01]} cxd4 {[%emt 0:00:02]} 4. Nxd4 {[%emt 0:00:00]} Nf6 {[%emt 0:00:03]} 5. Nc3 {[%emt 0:00:00]} Nc6 {[%emt 0:00:00]} 6. Be2 {[%emt 0:00:08]} g6 {[%emt 0:00:02]} 7. Be3 {[%emt 0:00:03]} Bg7 {[%emt 0:00:01]} 8. O-O {[%emt 0:00:05]} O-O {[%emt 0:00:02]} 9. Nb3 {[%emt 0:00:02]} a6 {[%emt 0:00:06]} 10. a4 {[%emt 0:00:00]} Na5 {[%emt 0:00:03]} 11. Nd4 {[%emt 0:00:10]} Bd7 {[%emt 0:00:13]} 12. f4 {[%emt 0:00:02]} Rc8 {[%emt 0:00:19]} 13. h3 {[%emt 0:00:13]} Rxc3 {[%emt 0:00:27]} 14. bxc3 {[%emt 0:00:02]} Nxe4 {[%emt 0:00:01]} 15. Qe1 {[%emt 0:00:07]} Qc7 {[%emt 0:00:06]} 16. f5 {[%emt 0:00:30]} Qxc3 {[%emt 0:00:04]} 17. Qxc3 {[%emt 0:00:16]} Nxc3 {[%emt 0:00:01]} 18. Bf3 {[%emt 0:00:04]} Nc4 {[%emt 0:00:15]} 19. Bf2 {[%emt 0:00:04]} gxf5 {[%emt 0:00:07]} 20. Rae1 {[%emt 0:00:17]} e5 {[%emt 0:00:04]} 21. Ne2 {[%emt 0:00:02]} e4 {[%emt 0:00:06]} 22. Bh5 {[%emt 0:00:01]} Nd2 {[%emt 0:00:06]} 23. Nxc3 {[%emt 0:00:01]} Bxc3 {[%emt 0:00:02]} 24. Rd1 {[%emt 0:00:05]} Nxf1 {[%emt 0:00:03]} 25. Kxf1 {[%emt 0:00:12]} Be5 {[%emt 0:00:03]} 26. a5 {[%emt 0:00:06]} Rc8 {[%emt 0:00:01]} 27. Rd2 {[%emt 0:00:05]} f4 {[%emt 0:00:05]} 28. Bh4 {[%emt 0:00:09]} e3 {[%emt 0:00:01]} 29. Rd1 {[%emt 0:00:16]} Rxc2 {[%emt 0:00:04]} 30. Kg1 {[%emt 0:00:09]} Bc6 {[%emt 0:00:04]} 31. Bf3 {[%emt 0:00:01]} e2 {[%emt 0:00:08]} 32. Re1 {[%emt 0:00:05]} Bxf3 {[%emt 0:00:01]} 33. gxf3 {[%emt 0:00:02]} Bd4+ {[%emt 0:00:03]} 34. Kg2 {[%emt 0:00:00]} Bc3 {[%emt 0:00:01]} 35. Rg1 {[%emt 0:00:09]} e1=Q+ {[%emt 0:01:22]} 0-1

[Event "4th Nikity Blitz 2024"]
[Site "Niteroi"]
[Date "2024.08.31"]
[Round "4.1"]
[White "Do Valle Cardoso, Lucas"]
[Black "Mekhitarian, Krikor Sevag"]
[Result "1-0"]
[ECO "B33"]
[WhiteElo "2365"]
[BlackElo "2560"]
[Annotator "TA"]
[PlyCount "85"]
[EventDate "2024.08.28"]
[EventType "swiss"]
[EventCountry "BRA"]
[SourceTitle "playchess.com"]
[Source "ChessBase"]
[SourceQuality "1"]
[TimeControl "180+2"]

{[%evp 26,85,0,0,0,0,9,0,6,16,20,16,12,19,29,30,70,53,77,55,91,83,206,169,166,160,207,177,172,188,241,260,277,275,257,255,302,307,314,275,337,297,289,288,279,225,222,112,193,138,262,200,763,706,793,753,801,800,6123,6103,5230,2453]} 1. e4 {[%emt 0:00:01]} c5 {[%emt 0:00:00]} 2. Nf3 {[%emt 0:00:01][%cal Bg1f3,Bf3d4,Bd4b5,Bb5a3,Ba3c2,Bc2e3][%mdl 32]} Nc6 {[%emt 0:00:01]} 3. Nc3 {[%emt 0:00:01]} Nf6 {[%emt 0:00:01]} 4. d4 {[%emt 0:00:14]} cxd4 {[%emt 0:00:01]} 5. Nxd4 {[%emt 0:00:01]} e5 {[%emt 0:00:01]} 6. Ndb5 {[%emt 0:00:04]} d6 {[%emt 0:00:00]} 7. Bg5 {[%emt 0:00:11]} a6 {[%emt 0:00:01]} 8. Na3 {[%emt 0:00:01]} b5 {[%emt 0:00:01]} 9. Nd5 {[%emt 0:00:01]} Be7 {[%emt 0:00:01]} 10. Bxf6 {[%emt 0:00:01]} Bxf6 {[%emt 0:00:01]} 11. c3 {[%emt 0:00:01]} Bg5 {[%emt 0:00:05]} 12. Nc2 {[%emt 0:00:03]} Rb8 {[%emt 0:00:03]} 13. Qd3 {[%emt 0:00:07]} O-O {[%emt 0:00:06]} 14. Be2 {[%emt 0:00:01]} Be6 {[%emt 0:00:12]} 15. Nce3 {[%emt 0:00:07]} g6 {[%emt 0:00:38]} 16. O-O {[%emt 0:00:07]} f5 {[%emt 0:00:03] The position is equal.} 17. exf5 {[%emt 0:00:13]} gxf5 {[%emt 0:00:02]} 18. f4 {[%emt 0:00:02]} Bh6 {[%emt 0:00:20]} 19. Rad1 {[%emt 0:00:10]} e4 {[%emt 0:00:18] Against Rf3} 20. Qd2 {[%emt 0:00:05]} Rb7 {[%emt 0:00:06] [#]} 21. a4 $1 {[%emt 0:00:18]} bxa4 {[%emt 0:00:17]} (21... Bg7 22. g4) 22. Bxa6 {[%emt 0:00:01]} Ra7 {[%emt 0:00:03] Black is on the road to losing.} 23. Bb5 $36 {[%emt 0:00:21][%mdl 2048] Keeping Black busy.} Nb8 {[%emt 0:01:02]} (23... Ne7 $16 {was necessary.}) 24. Kh1 {[%emt 0:00:32][%cal Og2g4]} Bg7 {[%emt 0:00:02][%cal Bh6g7,Bg7c3,Bc3a5,Ba5d8][%mdl 32]} 25. Nb4 {[%emt 0:00:07]} Qb6 {[%emt 0:00:07]} (25... a3 $16 {was worth a try.} 26. bxa3 (26. Qxd6 $2 {loses.} Qxd6 27. Rxd6 axb2 $19) 26... Rxa3) 26. Qxd6 $18 {[%emt 0:00:02]} Qxd6 {[%emt 0:00:09]} 27. Rxd6 {[%emt 0:00:00]} Bc8 {[%emt 0:00:02]} (27... Bb3 {is a better defense.} 28. Ra1 a3 29. Rxa3 Rxa3 30. bxa3 Bxc3) 28. Rfd1 {[%emt 0:00:18]} a3 {[%emt 0:00:00] Black is weak on the light squares} 29. bxa3 {[%emt 0:00:49]} Bxc3 {[%emt 0:00:02]} 30. Nbd5 {[%emt 0:00:00]} Ba5 {[%emt 0:00:06]} 31. a4 {[%emt 0:00:00]} Kh8 {[%emt 0:00:02]} 32. g3 {[%emt 0:00:00]} Rd8 {[%emt 0:00:09]} 33. Rxd8+ {[%emt 0:00:00]} Bxd8 {[%emt 0:00:02]} 34. Kg2 {[%emt 0:00:01]} Be6 {[%emt 0:00:01]} 35. Kh3 {[%emt 0:00:07]} Kg7 {[%emt 0:00:00]} 36. Rc1 {[%emt 0:00:01]} (36. Nc2 $18 {[%cal Oc2d4] Nd4! is the strong threat.} Kf7 37. Nce3) 36... h6 {[%emt 0:00:03]} (36... Kf7 $16 {was called for.} 37. Rd1 Rb7) 37. Rc5 {[%emt 0:00:01]} (37. Kg2 $18) 37... Nd7 {[%emt 0:00:04]} (37... Kf7 $16 {keeps fighting.} 38. Bc4 Rxa4) 38. Rc6 {[%emt 0:00:03]} Bf7 {[%emt 0:00:02] [#]} (38... Kf7 39. Rd6 Be7 40. Nxe7 Kxe7) 39. Rd6 {[%emt 0:00:01] White is clearly winning.} Be8 {[%emt 0:00:06]} 40. Nxf5+ {[%emt 0:00:01] Excellent horsemanship.} Kf8 {[%emt 0:00:00]} 41. Rxh6 {[%emt 0:00:03]} Nf6 {[%emt 0:00:00]} 42. Nxf6 {[%emt 0:00:02]} Bxb5 {[%emt 0:00:00]} 43. axb5 {[%emt 0:00:01] Weighted Error Value: White=0.19 (very precise) /Black=0.35.  Mistake:       	White=2     	Black=6      Inaccurate:     	---       	Black=2      OK:         	White=9     	Black=3      Best:        	White=1     	---} 1-0

[Event "4th Nikity Blitz 2024"]
[Site "Niteroi"]
[Date "2024.08.31"]
[Round "4.2"]
[White "Quintiliano, Renato R."]
[Black "Di Berardino, Diego Rafael"]
[Result "1-0"]
[ECO "A33"]
[WhiteElo "2499"]
[BlackElo "2472"]
[Annotator "TA"]
[PlyCount "87"]
[EventDate "2024.08.28"]
[EventType "swiss"]
[EventCountry "BRA"]
[SourceTitle "playchess.com"]
[Source "ChessBase"]
[SourceQuality "1"]
[TimeControl "180+2"]

{[%evp 17,87,0,4,0,71,56,143,0,0,-13,0,0,4,0,0,0,86,8,0,0,0,-25,0,-29,13,0,0,-51,50,8,66,49,65,64,112,115,108,43,46,-27,-44,-62,-64,-114,-97,-85,129,0,0,-630,47,46,71,66,69,77,84,68,85,54,654,659,586,0,120,129,611,592,605,587,29991,29992]} 1. Nf3 {[%emt 0:00:01]} c5 {[%emt 0:00:02]} 2. c4 {[%emt 0:00:02]} Nf6 {[%emt 0:00:04]} 3. Nc3 {[%emt 0:00:00]} Nc6 {[%emt 0:00:01]} 4. d4 {[%emt 0:00:05]} cxd4 {[%emt 0:00:02]} 5. Nxd4 {[%emt 0:00:01]} e6 {[%emt 0:00:01]} 6. g3 {[%emt 0:00:05]} Qb6 {[%emt 0:00:05]} 7. Nb3 {[%emt 0:00:01]} Ne5 {[%emt 0:00:03]} 8. e4 {[%emt 0:00:02]} Bb4 {[%emt 0:00:07]} 9. Qe2 {[%emt 0:00:01]} d6 $1 {[%emt 0:00:08]} 10. Bd2 {[%emt 0:00:03]} Bd7 {[%emt 0:00:27]} (10... O-O $11) 11. f4 $1 $16 {[%emt 0:00:14] Black must now prevent Be3.} Nc6 {[%emt 0:00:02]} (11... Ng6 $14) 12. Be3 $2 {[%emt 0:00:01]} (12. e5 $1 $16 {[%cal Re5f6]} dxe5 13. fxe5 Nxe5 14. Qxe5) 12... Bxc3+ $11 {[%emt 0:00:03]} 13. bxc3 {[%emt 0:00:01]} Qc7 {[%emt 0:00:03]} 14. Bg2 {[%emt 0:00:13]} O-O {[%emt 0:00:09]} 15. Rd1 {[%emt 0:00:09]} Rfd8 {[%emt 0:00:13]} 16. O-O {[%emt 0:00:18][%cal Bh1f1,Bf1f3,Bf3h3][%mdl 32]} b6 {[%emt 0:00:04]} (16... e5 $11 {remains equal.}) 17. g4 {[%emt 0:00:17]} (17. e5 $1 $16 {[%cal Re5f6]} Ne8 (17... dxe5 18. fxe5 Qxe5 19. Rxd7 $16) 18. Nd4) 17... Rac8 {[%emt 0:00:24]} 18. g5 {[%emt 0:00:15]} Ne8 {[%emt 0:00:01]} 19. Rf3 {[%emt 0:00:16]} Ne7 {[%emt 0:00:16]} 20. Nd2 {[%emt 0:00:06]} Ng6 {[%emt 0:00:28][%cal Od6d5]} 21. Rh3 {[%emt 0:00:16]} Nf8 {[%emt 0:00:32][%cal Od6d5]} 22. Rf1 {[%emt 0:00:01]} ({White should try} 22. Qf2 $11) 22... Bc6 {[%emt 0:00:10]} (22... d5 $1 $15) 23. Qg4 {[%emt 0:00:12]} Bb7 {[%emt 0:00:08]} (23... Qd7 $11) 24. f5 $14 {[%emt 0:00:04] Hoping for fxe6.} exf5 {[%emt 0:00:02]} 25. exf5 {[%emt 0:00:01]} Bxg2 {[%emt 0:00:01]} (25... d5 $14) 26. Qxg2 $16 {[%emt 0:00:02]} (26. Kxg2 $6 d5 $14) 26... d5 {[%emt 0:00:01] Inhibits Ne4.} 27. Bd4 {[%emt 0:00:13]} (27. cxd5 $16 {Ne4 would now be deadly.} Qb7 28. c4) 27... dxc4 $14 {[%emt 0:00:06] [#]} 28. g6 {[%emt 0:00:03]} fxg6 $11 {[%emt 0:00:05]} 29. fxg6 {[%emt 0:00:02]} Nxg6 {[%emt 0:00:03]} 30. Qg5 {[%emt 0:00:07] [#]} (30. Ne4 $15 Qc6 31. Qf3) 30... Rxd4 $1 {[%emt 0:00:04]} 31. cxd4 {[%emt 0:00:01] Strongly threatening Qd5+.} c3 $2 {[%emt 0:00:04] [#]} (31... Qd7 $17 {keeps the pressure on.} 32. Re3 Nf6 (32... Qxd4 33. Nf3 $15)) 32. Ne4 $40 {[%emt 0:00:04][%mdl 128] White mounts an attack.} ({White must play} 32. Qd5+ $1 $16 Kh8 33. Ne4) 32... Qd7 {[%emt 0:00:04][%csl LRd4,LRh3]} 33. Nxc3 $2 {[%emt 0:00:15][%mdl 8192]} Qxd4+ $2 {[%emt 0:00:02]} (33... Qxh3 $19 34. Qd5+ Kh8) 34. Qe3 $14 {[%emt 0:00:03] Dancing on a razor blade.} Qg4+ {[%emt 0:00:02]} 35. Rg3 {[%emt 0:00:01][%mdl 1024] White has strong compensation.} Qd7 {[%emt 0:00:01]} 36. Ne4 {[%emt 0:00:10][%cal Bc3e4,Be4g5,Bg5f7][%mdl 32]} Nc7 {[%emt 0:00:02]} 37. Qb3+ {[%emt 0:00:04]} Kh8 $1 {[%emt 0:00:01]} 38. Ng5 {[%emt 0:00:02] White is much more active.} (38. Rd1 {simplifies} Qe6 39. Nd6 Rf8 40. Qxe6 Nxe6 41. Ra3) 38... h6 $2 {[%emt 0:00:03][%mdl 8192] [#]} (38... Nd5 $14) 39. Nf7+ $1 $18 {[%emt 0:00:03]} Kh7 {[%emt 0:00:00]} 40. Qe3 {[%emt 0:00:09]} (40. Rxg6 $18 {[%cal Ob3c3] White threatens Qc3! and mate.} Qd4+ 41. Kh1 Qd5+ 42. Qxd5 Nxd5 43. Rfg1) 40... Nd5 {[%emt 0:00:02]} (40... Re8 $11 41. Qf2 (41. Qd3 Qxd3 42. Rxd3 Re2 $11) 41... Re7) 41. Qe4 $16 {[%emt 0:00:03]} Ndf4 {[%emt 0:00:04][%mdl 8192]} 42. Rxf4 $18 {[%emt 0:00:03]} Rc1+ {[%emt 0:00:03]} 43. Kg2 {[%emt 0:00:02]} Qd2+ {[%emt 0:00:01]} 44. Rf2 {[%emt 0:00:01] White used his chance.   Weighted Error Value: White=0.64/Black=0.80.  Loses game:     	White=1     	Black=2      Missed win:     	---       	Black=1      Mistake:       	White=7     	Black=7      Inaccurate:     	White=3     	Black=2      OK:         	White=7     	Black=8      Best:        	White=1     	Black=2      Strong:       	White=2     	Black=1} 1-0

[Event "4th Nikity Blitz 2024"]
[Site "Niteroi"]
[Date "2024.08.31"]
[Round "4.3"]
[White "Perdomo, Leandro"]
[Black "Rangel, Daniel"]
[Result "1-0"]
[ECO "D36"]
[WhiteElo "2359"]
[BlackElo "2198"]
[Annotator "RC"]
[PlyCount "47"]
[EventDate "2024.08.28"]
[EventType "swiss"]
[EventCountry "BRA"]
[SourceTitle "playchess.com"]
[Source "ChessBase"]
[SourceQuality "1"]
[TimeControl "180+2"]

1. d4 {[%emt 0:00:01]} Nf6 {[%emt 0:00:01]} 2. c4 {[%emt 0:00:00]} e6 {[%emt 0:00:08]} 3. Nc3 {[%emt 0:00:01]} d5 {[%emt 0:00:01]} 4. Bg5 {[%emt 0:00:02]} c6 {[%emt 0:00:03]} 5. e3 {[%emt 0:00:02]} Nbd7 {[%emt 0:00:02]} 6. cxd5 {[%emt 0:00:01]} exd5 {[%emt 0:00:04]} 7. Bd3 {[%emt 0:00:01]} Be7 {[%emt 0:00:03]} 8. Qc2 {[%emt 0:00:01]} O-O {[%emt 0:00:04]} 9. Nf3 {[%emt 0:00:01]} Re8 {[%emt 0:00:03]} 10. O-O {[%emt 0:00:03]} Nf8 {[%emt 0:00:08]} 11. h3 {[%emt 0:00:01]} Nh5 {[%emt 0:00:09]} 12. Bxe7 {[%emt 0:00:03]} Qxe7 {[%emt 0:00:01]} 13. Rab1 {[%emt 0:00:14]} a5 {[%emt 0:00:15]} 14. Rbe1 {[%emt 0:00:15]} g6 {[%emt 0:00:28]} 15. Na4 {[%emt 0:00:48]} Qf6 {[%emt 0:00:28]} 16. Ne5 {[%emt 0:00:03]} Nd7 {[%emt 0:00:19]} 17. f4 {[%emt 0:00:09]} Ng7 {[%emt 0:00:16]} 18. Ng4 {[%emt 0:00:48]} Qd8 {[%emt 0:00:22]} 19. f5 {[%emt 0:00:02]} gxf5 {[%emt 0:00:40]} 20. Bxf5 {[%emt 0:00:02]} Nxf5 {[%emt 0:00:01]} 21. Qxf5 {[%emt 0:00:01]} Qe7 {[%emt 0:00:04]} 22. Nh6+ {[%emt 0:00:17]} Kg7 {[%emt 0:00:03]} 23. Qg4+ {[%emt 0:00:25]} Kh8 {[%emt 0:00:02]} 24. Nxf7+ {[%emt 0:00:29]} 1-0

[Event "4th Nikity Blitz 2024"]
[Site "Niteroi"]
[Date "2024.08.31"]
[Round "4.5"]
[White "Aranha Filho, Alvaro Z."]
[Black "De Oliveira, Yuri Garcia"]
[Result "1-0"]
[ECO "E11"]
[WhiteElo "2196"]
[BlackElo "1964"]
[Annotator "RC"]
[PlyCount "52"]
[EventDate "2024.08.28"]
[EventType "swiss"]
[EventCountry "BRA"]
[SourceTitle "playchess.com"]
[Source "ChessBase"]
[SourceQuality "1"]
[TimeControl "180+2"]

1. d4 {[%emt 0:00:03]} Nf6 {[%emt 0:00:01]} 2. c4 {[%emt 0:00:01]} e6 {[%emt 0:00:01]} 3. Nf3 {[%emt 0:00:01]} Bb4+ {[%emt 0:00:02]} 4. Bd2 {[%emt 0:00:04]} a5 {[%emt 0:00:01]} 5. g3 {[%emt 0:00:03]} d6 {[%emt 0:00:03]} 6. Bg2 {[%emt 0:00:01]} Nbd7 {[%emt 0:00:08]} 7. O-O {[%emt 0:00:03]} e5 {[%emt 0:00:14]} 8. Bg5 {[%emt 0:00:23]} exd4 {[%emt 0:00:10]} 9. Nxd4 {[%emt 0:00:02]} h6 {[%emt 0:00:09]} 10. Bc1 {[%emt 0:00:07]} O-O {[%emt 0:00:03]} 11. b3 {[%emt 0:00:35]} Re8 {[%emt 0:00:04]} 12. Bb2 {[%emt 0:00:03]} Ne5 {[%emt 0:00:21]} 13. Nc3 {[%emt 0:00:12]} c6 {[%emt 0:00:12]} 14. Qc2 {[%emt 0:00:12]} Bd7 {[%emt 0:00:16]} 15. Rad1 {[%emt 0:00:07]} Qc8 {[%emt 0:00:01]} 16. Na4 {[%emt 0:00:09]} Bc5 {[%emt 0:00:06]} 17. Nf3 {[%emt 0:00:21]} Bf5 {[%emt 0:00:39]} 18. Qc1 {[%emt 0:00:06]} Nxf3+ {[%emt 0:00:19]} 19. Bxf3 {[%emt 0:00:04]} Nd7 {[%emt 0:00:08]} 20. Ba3 {[%emt 0:00:12]} b5 {[%emt 0:00:13]} 21. cxb5 {[%emt 0:00:05]} cxb5 {[%emt 0:00:00]} 22. Nxc5 {[%emt 0:00:06]} dxc5 {[%emt 0:00:11]} 23. Bb2 {[%emt 0:00:30]} Ra6 {[%emt 0:00:11]} 24. Qc3 {[%emt 0:00:05]} Ne5 {[%emt 0:00:12]} 25. Bg2 {[%emt 0:00:17]} b4 26. Qc1 {[%emt 0:00:00]} c4 {[%emt 0:00:09]} 1-0